bitfinex/quotes_SOLUSD_20250829
["timestamp","ask_amount","ask_price","bid_price","bid_amount"]
[1756434946135,9.80066127,216.58,216.57,0.03]
[1756434946610,10.46066127,216.58,216.57,0.03]
[1756434947013,15.07789277,216.58,216.57,0.03]
[1756434948451,28.95780992,216.58,216.57,0.03]
[1756434948654,38.78,216.58,216.57,0.03]
[1756434948824,48.58066127,216.58,216.57,0.03]
[1756434949146,53.19789277,216.58,216.57,0.03]
[1756434949544,9.80066127,216.58,216.57,0.03]
[1756434949742,74.58066127,216.58,216.57,0.03]
[1756434949940,79.19789277,216.58,216.57,0.03]
[1756434950545,9.80066127,216.58,216.57,0.03]
[1756434950834,48.58066127,216.58,216.57,0.03]
[1756434952952,9.80066127,216.58,216.57,0.03]
[1756434953142,48.58066127,216.58,216.57,0.03]
[1756434953459,53.19789277,216.58,216.57,0.03]
[1756434953755,40.41789277,216.58,216.57,0.03]
[1756434953958,79.85789277,216.58,216.57,0.03]
[1756434954160,79.19789277,216.58,216.57,0.03]
[1756434955242,13.59559401,216.56,216.54,0.03]
[1756434955557,39.87991715,216.54,216.53,0.2]
[1756434955857,85.50339674,216.54,216.53,0.2]
[1756434956062,86.16339674,216.54,216.53,0.2]
[1756434956650,47.38339674,216.54,216.53,0.2]
[1756434956859,52.00148115,216.54,216.53,0.2]
[1756434957031,90.78148115,216.54,216.53,0.2]
[1756434957451,13.87991715,216.53,216.52,0.03]
[1756434957651,21.38339674,216.53,216.52,0.03]
[1756434957858,26.0,216.5,216.44,0.7]
[1756434958051,6.84347959,216.45,216.44,0.7]
[1756434958254,45.62347959,216.45,216.44,0.7]
[1756434959555,6.84347959,216.45,216.41,0.7]
[1756434959853,6.84347959,216.43,216.42,0.7]
[1756434960240,45.62347959,216.46,216.42,0.7]
[1756434960938,45.62347959,216.46,216.43,4.62043154]
[1756434961134,45.62347959,216.46,216.44,0.71]
[1756434961356,13.87991715,216.55,216.43,4.62043154]
[1756434961357,11.54245206,216.6,216.45,0.71]
[1756434961564,6.84347959,216.5,216.45,0.71]
[1756434961739,26.0,216.57,216.45,7.55347959]
[1756434961940,4.61701832,216.59,216.48,6.84347959]
[1756434962141,6.84347959,216.54,216.49,0.71]
[1756434962375,6.84347959,216.53,216.49,0.71]
[1756434962548,6.84347959,216.52,216.49,8.71]
[1756434962749,6.84347959,216.51,216.5,0.71]
[1756434962942,26.7,216.58,216.51,4.6187243]
[1756434962943,6.84347959,216.54,216.51,4.6187243]
[1756434963154,6.84347959,216.52,216.5,0.71]
[1756434963446,6.84347959,216.52,216.46,32.84347959]
[1756434963662,6.84347959,216.5,216.46,0.71]
[1756434963962,6.84347959,216.47,216.43,0.71]
[1756434964158,6.84347959,216.45,216.43,0.71]
[1756434964343,6.84347959,216.46,216.44,0.71]
[1756434964752,6.84347959,216.45,216.42,0.71]
[1756434964952,43.39932525,216.49,216.42,0.71]
[1756434965175,6.84347959,216.45,216.43,0.71]
[1756434966053,6.84347959,216.45,216.39,11.46476523]
[1756434966254,6.84347959,216.42,216.4,0.71]
[1756434966656,6.84347959,216.42,216.41,0.71]
[1756434967082,6.84347959,216.42,216.38,0.71]
[1756434967276,6.84347959,216.39,216.35,0.2]
[1756434967481,6.84347959,216.36,216.35,0.2]
[1756434969382,15.16472941,216.36,216.35,0.2]
[1756434970192,26.0,216.33,216.22,3.12219819]
[1756434970355,9.842803,216.25,216.22,0.71]
[1756434970553,9.842803,216.26,216.22,26.71]
[1756434970772,9.842803,216.26,216.23,0.71]
[1756434971077,9.842803,216.27,216.24,5.33442084]
[1756434971261,9.842803,216.27,216.25,0.71]
[1756434971459,9.842803,216.3,216.25,0.71]
[1756434971760,38.78,216.33,216.29,9.842803]
[1756434971956,48.622803,216.33,216.3,0.71]
[1756434972176,9.842803,216.32,216.26,49.72272015]
[1756434972486,9.842803,216.31,216.27,0.71]
[1756434972788,9.842803,216.28,216.24,5.33442084]
[1756434972957,9.842803,216.28,216.25,0.71]
[1756434973153,9.842803,216.32,216.26,9.842803]
[1756434973375,9.842803,216.32,216.27,0.71]
[1756434973681,9.842803,216.31,216.28,0.71]
[1756434974183,9.842803,216.32,216.29,0.71]
[1756434974384,9.842803,216.32,216.3,0.71]
[1756434974587,38.78,216.37,216.31,10.552803]
[1756434975083,48.622803,216.37,216.32,4.62278106]
[1756434975385,9.842803,216.36,216.33,0.71]
[1756434976784,38.78,216.37,216.29,30.62321521]
[1756434977091,9.842803,216.35,216.3,5.33320462]
[1756434977390,9.842803,216.35,216.31,0.71]
[1756434977575,9.842803,216.34,216.28,15.1762328]
[1756434978185,9.842803,216.36,216.3,9.842803]
[1756434978355,9.842803,216.36,216.31,0.71]
[1756434978562,9.842803,216.36,216.32,0.71]
[1756434979090,9.842803,216.35,216.32,5.33277003]
[1756434979256,9.842803,216.34,216.28,5.33359603]
[1756434979454,9.842803,216.34,216.28,15.17639903]
[1756434979683,9.842803,216.36,216.29,9.842803]
[1756434979879,9.842803,216.36,216.29,10.552803]
[1756434980072,48.622803,216.36,216.29,10.552803]
[1756434980867,9.842803,216.35,216.29,10.552803]
[1756434981080,9.842803,216.35,216.3,4.6232085]
[1756434981280,9.842803,216.37,216.31,10.552803]
[1756434981471,74.622803,216.38,216.32,9.842803]
[1756434981661,48.622803,216.38,216.32,9.842803]
[1756434982179,9.842803,216.37,216.31,10.552803]
[1756434982484,9.842803,216.37,216.31,0.71]
[1756434982779,9.842803,216.36,216.31,0.71]
[1756434982983,9.842803,216.35,216.31,0.71]
[1756434983166,9.842803,216.35,216.32,4.62278106]
[1756434983567,9.842803,216.37,216.33,0.71]
[1756434983775,9.842803,216.37,216.32,4.62278106]
[1756434983971,9.842803,216.41,216.34,10.552803]
[1756434984171,9.842803,216.36,216.32,4.62278106]
[1756434984362,9.842803,216.34,216.32,4.62278106]
[1756434984996,9.842803,216.36,216.32,4.62278106]
[1756434985369,9.842803,216.35,216.31,4.62299477]
[1756434986182,10.532803,216.35,216.31,4.62299477]
[1756434986390,9.842803,216.34,216.28,4.62363602]
[1756434986562,9.842803,216.34,216.28,14.46643902]
[1756434986767,9.842803,216.35,216.29,9.842803]
[1756434986968,9.842803,216.35,216.29,17.842803]
[1756434987986,9.842803,216.35,216.3,4.6232085]
[1756434988765,4.62151739,216.38,216.3,4.6232085]
[1756434988766,30.59683241,216.43,216.33,9.842803]
[1756434988967,9.842803,216.4,216.34,9.842803]
[1756434989166,9.842803,216.4,216.33,10.552803]
[1756434989366,6.84797331,216.39,216.33,7.55797331]
[1756434990192,0.06,216.36,216.34,4.6223537]
[1756434991186,0.06,216.36,216.34,5.2823537]
[1756434993467,0.06,216.36,216.35,0.66]
[1756434993676,0.06,216.36,216.35,7.50797331]
[1756434994688,0.06,216.36,216.32,6.84797331]
[1756434994897,0.06,216.36,216.31,7.79229645]
[1756434995084,0.06,216.36,216.32,0.66]
[1756434995791,6.84797331,216.34,216.29,34.69]
[1756434995983,6.84797331,216.33,216.29,0.03]
[1756434996772,6.84797331,216.34,216.29,0.03]
[1756434997274,6.84797331,216.33,216.29,0.03]
[1756435000175,6.84797331,216.34,216.29,0.03]
[1756435000571,6.84797331,216.34,216.29,0.69]
[1756435000889,6.84797331,216.35,216.3,0.66]
[1756435001091,0.06,216.36,216.31,7.50797331]
[1756435001596,0.06,216.36,216.32,0.66]
[1756435001968,6.84797331,216.35,216.29,7.53797331]
[1756435002187,6.90797331,216.36,216.3,12.13118181]
[1756435002387,0.06,216.36,216.31,6.84797331]
[1756435002588,0.06,216.36,216.32,7.50797331]
[1756435002996,0.06,216.36,216.33,0.66]
[1756435003173,0.06,216.36,216.34,0.66]
[1756435004395,0.06,216.36,216.35,5.28214005]
[1756435007899,0.06,216.36,216.35,4.62214005]
[1756435008398,0.06,216.36,216.34,0.03]
[1756435008596,0.06,216.36,216.34,0.69]
[1756435008981,0.06,216.36,216.34,0.03]
[1756435009300,6.84797331,216.35,216.34,0.03]
[1756435010188,7.53797331,216.35,216.34,0.03]
[1756435010391,12.16011336,216.35,216.34,0.03]
[1756435010712,7.53797331,216.35,216.34,0.03]
[1756435010883,26.04003051,216.35,216.34,0.03]
[1756435011083,26.04003051,216.35,216.31,0.03]
[1756435011084,26.0,216.32,216.31,0.03]
[1756435011392,71.54797331,216.32,216.31,0.03]
[1756435011707,72.20797331,216.32,216.31,0.03]
[1756435011888,32.84797331,216.32,216.31,0.03]
[1756435012081,71.54797331,216.32,216.31,0.03]
[1756435012288,0.66,216.35,216.31,0.03]
[1756435012494,6.84797331,216.33,216.31,0.03]
[1756435012689,6.84797331,216.32,216.31,0.03]
[1756435012910,6.84797331,216.33,216.31,0.03]
[1756435013420,6.84797331,216.32,216.31,0.03]
[1756435013714,6.84797331,216.33,216.31,0.03]
[1756435013925,65.42,216.36,216.31,0.03]
[1756435014101,6.84797331,216.34,216.31,0.03]
[1756435014409,11.47075437,216.32,216.31,0.03]
[1756435014585,50.17075437,216.32,216.31,0.03]
[1756435014785,50.83075437,216.32,216.31,0.03]
[1756435016020,26.0,216.3,216.29,0.03]
[1756435016187,26.0,216.3,216.26,0.03]
[1756435016188,50.60344933,216.3,216.26,0.03]
[1756435016510,25.35174027,216.27,216.26,0.03]
[1756435016807,64.05174027,216.27,216.26,0.03]
[1756435017197,64.71174027,216.27,216.26,0.03]
[1756435017580,50.83182312,216.27,216.26,0.03]
[1756435017789,46.20797331,216.27,216.26,0.03]
[1756435019098,46.20797331,216.27,216.09,0.66]
[1756435019099,13.59559401,216.2,216.09,0.66]
[1756435019399,26.0,216.21,216.1,4.62748727]
[1756435019400,6.84797331,216.15,216.1,4.62748727]
[1756435019706,6.84797331,216.16,216.12,4.62705904]
[1756435019889,6.84797331,216.16,216.13,0.66]
[1756435020291,38.68,216.19,216.14,0.67]
[1756435020489,6.84797331,216.16,216.14,0.67]
[1756435021099,6.84797331,216.15,216.14,0.67]
[1756435021298,6.84797331,216.16,216.14,0.67]
[1756435021506,6.84797331,216.18,216.15,4.62641684]
[1756435021704,45.54797331,216.19,216.15,4.62641684]
[1756435021890,45.52797331,216.19,216.15,5.29641684]
[1756435022086,6.84797331,216.19,216.16,0.67]
[1756435022497,45.52797331,216.22,216.17,0.67]
[1756435022697,6.84797331,216.21,216.17,0.67]
[1756435022912,6.84797331,216.19,216.17,0.67]
[1756435023116,6.84797331,216.2,216.18,0.67]
[1756435023292,6.84797331,216.21,216.18,0.67]
[1756435023488,6.84797331,216.21,216.19,4.62556084]
[1756435023814,6.84797331,216.21,216.19,0.67]
[1756435024022,6.84797331,216.2,216.17,0.67]
[1756435024604,38.68,216.23,216.14,80.7]
[1756435024605,38.68,216.19,216.14,80.7]
[1756435024794,6.84797331,216.17,216.14,85.99661865]
[1756435025000,45.52797331,216.18,216.15,0.67]
[1756435025195,45.52797331,216.18,216.16,0.67]
[1756435025395,45.52797331,216.18,216.14,80.7]
[1756435025592,6.84797331,216.17,216.14,81.37]
[1756435025818,6.84797331,216.17,216.14,85.35659302]
[1756435026024,45.52797331,216.18,216.15,0.67]
[1756435026197,38.68,216.18,216.16,0.67]
[1756435026529,26.0,216.23,216.17,0.67]
[1756435026728,6.84797331,216.22,216.17,0.67]
[1756435026896,38.68,216.24,216.18,0.67]
[1756435027092,6.84797331,216.21,216.16,0.67]
[1756435027331,6.84797331,216.21,216.17,0.67]
[1756435027533,6.84797331,216.21,216.18,5.29567849]
[1756435027698,6.84797331,216.22,216.18,5.29567849]
[1756435027893,6.84797331,216.21,216.18,5.29567849]
[1756435028199,6.84797331,216.21,216.19,0.67]
[1756435028523,6.84797331,216.2,216.15,5.29641684]
[1756435028819,6.84797331,216.17,216.14,0.03]
[1756435029131,6.84797331,216.15,216.14,0.03]
[1756435029712,38.68,216.17,216.14,0.03]
[1756435029713,6.84797331,216.16,216.14,0.03]
[1756435031021,6.84797331,216.2,216.15,0.67]
[1756435031229,45.52797331,216.21,216.16,0.67]
[1756435031431,6.84797331,216.19,216.14,0.03]
[1756435031598,6.84797331,216.18,216.14,0.03]
[1756435031797,6.84797331,216.18,216.14,5.32663088]
[1756435032322,6.84797331,216.19,216.15,0.67]
[1756435032521,6.84797331,216.2,216.16,0.67]
[1756435032906,6.84797331,216.2,216.14,11.50460419]
[1756435033111,45.52797331,216.21,216.17,0.67]
[1756435033317,6.84797331,216.2,216.15,81.37]
[1756435033629,6.84797331,216.2,216.14,80.73]
[1756435033630,6.84797331,216.17,216.14,80.73]
[1756435033798,6.84797331,216.18,216.14,85.35648609]
[1756435033995,0.63,216.2,216.15,0.67]
[1756435033996,6.84797331,216.2,216.15,0.67]
[1756435034227,45.52797331,216.21,216.16,0.67]
[1756435034521,45.52797331,216.21,216.17,0.67]
[1756435034819,45.52797331,216.21,216.14,85.35648609]
[1756435035022,6.84797331,216.2,216.15,0.67]
[1756435035199,6.84797331,216.19,216.15,0.67]
[1756435035523,6.84797331,216.19,216.14,85.35648609]
[1756435035724,6.84797331,216.19,216.14,86.02648609]
[1756435036195,45.52797331,216.21,216.15,0.67]
[1756435036394,45.52797331,216.21,216.15,7.51797331]
[1756435036595,26.0,216.25,216.15,87.54797331]
[1756435036820,6.84797331,216.23,216.16,7.51797331]
[1756435037116,39.29,216.24,216.16,14.577883]
[1756435037317,4.17978811,216.21,216.16,14.577883]
[1756435037502,4.17978811,216.21,216.17,0.67]
[1756435037705,4.17978811,216.21,216.16,13.907883]
[1756435037906,39.29,216.24,216.17,5.2959888]
[1756435038326,43.91451146,216.24,216.17,5.2959888]
[1756435038624,39.29,216.24,216.17,5.2959888]
[1756435039326,39.29,216.24,216.18,13.907884]
[1756435039907,4.17978811,216.25,216.19,4.84978811]
[1756435040230,42.83978811,216.25,216.19,0.67]
[1756435040521,4.17978811,216.24,216.2,13.906594]
[1756435040902,4.17978811,216.24,216.2,18.53180005]
[1756435041227,4.17978811,216.24,216.2,4.62520605]
[1756435041623,4.17978811,216.24,216.21,14.576594]
[1756435041933,4.17978811,216.23,216.21,13.906594]
[1756435042235,4.17978811,216.23,216.16,85.32601639]
[1756435042236,4.17978811,216.22,216.16,85.32601639]
[1756435042408,4.17978811,216.22,216.2,13.906594]
[1756435042706,38.66,216.24,216.2,18.08638211]
[1756435042902,30.17978811,216.29,216.24,4.6244913]
[1756435043105,42.83978811,216.28,216.24,4.6244913]
[1756435043536,4.17978811,216.26,216.24,4.624491]
[1756435043908,4.17978811,216.27,216.24,4.624491]
[1756435044523,4.23978811,216.27,216.24,4.624491]
[1756435045343,4.17978811,216.25,216.24,4.624491]
[1756435045507,4.17978811,216.25,216.2,80.7]
[1756435045709,4.17978811,216.24,216.2,81.37]
[1756435045919,4.17978811,216.24,216.21,4.683864]
[1756435046330,4.17978811,216.23,216.21,4.683864]
[1756435046834,42.81978811,216.23,216.21,4.683864]
[1756435047041,38.64,216.23,216.22,0.67]
[1756435047215,4.17978811,216.26,216.22,0.67]
[1756435047418,4.17978811,216.24,216.21,4.683864]
[1756435048534,42.81978811,216.24,216.21,4.683864]
[1756435048736,0.06,216.27,216.22,4.84978811]
[1756435048943,38.64,216.26,216.23,4.84978811]
[1756435049120,38.64,216.26,216.22,4.62481529]
[1756435049312,38.64,216.26,216.21,8.86365211]
[1756435049511,38.64,216.26,216.22,0.67]
[1756435050126,38.64,216.26,216.23,0.67]
[1756435050432,38.64,216.26,216.22,4.17978811]
[1756435050636,38.64,216.26,216.21,8.80484143]
[1756435050846,48.07388244,216.26,216.23,9.308917]
[1756435051027,48.07388244,216.26,216.2,4.82978811]
[1756435051228,8.80414653,216.25,216.2,0.65]
[1756435051419,42.81978811,216.26,216.21,9.958917]
[1756435051817,38.64,216.26,216.22,0.65]
[1756435052125,38.64,216.26,216.22,4.82978811]
[1756435052744,38.64,216.26,216.23,13.905949]
[1756435054124,38.64,216.26,216.23,14.555949]
[1756435054835,0.06,216.27,216.24,4.82978811]
[1756435055016,0.06,216.27,216.26,4.17978811]
[1756435055218,0.06,216.27,216.26,17.77538212]
[1756435055423,0.06,216.27,216.26,18.70970526]
[1756435056426,0.06,216.27,216.26,0.65]
[1756435056629,0.06,216.27,216.26,14.551438]
[1756435056934,0.06,216.27,216.26,18.73122611]
[1756435057523,0.69,216.4,216.3,26.0]
[1756435057722,4.23978811,216.39,216.31,13.87991715]
[1756435058023,4.23978811,216.39,216.33,4.17978811]
[1756435058222,0.06,216.39,216.34,4.17978811]
[1756435058744,0.06,216.39,216.35,9.45192816]
[1756435060231,0.06,216.39,216.32,4.239789]
[1756435060542,4.17978811,216.38,216.32,8.41957711]
[1756435060843,8.80133779,216.38,216.32,9.06957711]
[1756435061356,4.17978811,216.38,216.32,13.69233913]
[1756435061641,4.17978811,216.38,216.33,0.65]
[1756435061825,0.06,216.39,216.33,4.82978811]
[1756435062146,0.06,216.39,216.34,0.65]
[1756435062457,4.23978811,216.39,216.33,4.17978811]
[1756435062753,4.23978811,216.39,216.33,0.65]
[1756435063121,8.86121344,216.39,216.33,0.65]
[1756435063339,4.17978811,216.38,216.33,0.65]
[1756435063725,4.17978811,216.37,216.32,4.239789]
[1756435063948,4.17978811,216.34,216.32,4.239789]
[1756435064447,4.17978811,216.33,216.32,4.239789]
[1756435064622,42.75978811,216.34,216.32,4.239789]
[1756435065042,38.58,216.34,216.32,4.239789]
[1756435065221,0.06,216.36,216.33,0.65]
[1756435065423,0.06,216.36,216.32,8.41957711]
[1756435065631,4.17978811,216.35,216.3,80.7]
[1756435065870,4.17978811,216.35,216.33,13.898863]
[1756435066439,4.17978811,216.34,216.33,13.898863]
[1756435066946,4.17978811,216.35,216.33,13.898863]
[1756435067631,4.17978811,216.35,216.3,0.65]
[1756435067836,4.23978811,216.36,216.34,13.898863]
[1756435068639,0.06,216.36,216.34,13.898863]
[1756435070337,0.06,216.36,216.35,0.65]
[1756435070737,0.06,216.36,216.32,9.45253899]
[1756435070954,0.06,216.36,216.35,13.898219]
[1756435071354,0.06,216.36,216.35,18.72800711]
[1756435072360,0.06,216.36,216.35,14.548219]
[1756435072769,0.06,216.36,216.35,18.72800711]
[1756435073444,0.06,216.36,216.35,14.548219]
[1756435074036,0.06,216.36,216.35,18.72800711]
[1756435074362,0.06,216.36,216.35,23.35014716]
[1756435076859,0.06,216.36,216.35,22.70014716]
[1756435077063,0.06,216.36,216.35,23.35014716]
[1756435077248,0.06,216.36,216.35,19.17035905]
[1756435077448,0.06,216.36,216.35,23.35014716]
[1756435078766,0.06,216.36,216.35,117.64574117]
[1756435078942,0.06,216.36,216.35,156.47006431]
[1756435079365,0.06,216.36,216.35,152.2902762]
[1756435079539,0.06,216.36,216.35,104.3344703]
[1756435079741,0.06,216.36,216.35,117.93006431]
[1756435080555,0.06,216.39,216.38,26.0]
[1756435080889,0.06,216.41,216.4,13.87991715]
[1756435081062,0.06,216.41,216.4,98.75970526]
[1756435081265,0.06,216.41,216.4,99.46970526]
[1756435081772,0.06,216.41,216.4,103.64949326]
[1756435081984,0.06,216.41,216.4,99.46970515]
[1756435082275,0.06,216.41,216.4,142.16949326]
[1756435082454,0.06,216.41,216.4,103.64949326]
[1756435082642,0.06,216.41,216.4,142.16949326]
[1756435082847,0.06,216.41,216.4,146.79056534]
[1756435083658,0.06,216.41,216.4,84.879788]
[1756435083863,0.76,216.41,216.4,84.879788]
[1756435084063,4.93978811,216.41,216.4,84.879788]
[1756435084575,0.06,216.41,216.4,84.879788]
[1756435084873,0.06,216.41,216.4,4.179788]
[1756435086558,4.93978811,216.41,216.4,4.179788]
[1756435086756,4.93978811,216.41,216.36,80.7]
[1756435086957,4.93978811,216.41,216.37,13.895]
[1756435087775,0.06,216.41,216.37,13.895]
[1756435088350,4.23978811,216.41,216.37,13.895]
[1756435088549,0.06,216.41,216.38,4.88978811]
[1756435088761,0.06,216.41,216.37,13.895]
[1756435088762,0.06,216.41,216.4,4.17978811]
[1756435088964,0.06,216.41,216.4,8.80086019]
[1756435089363,0.06,216.41,216.37,18.07478811]
[1756435089880,0.06,216.41,216.39,4.17978811]
[1756435090663,0.06,216.41,216.4,13.89307]
[1756435092983,0.06,216.41,216.31,0.71]
[1756435092984,69.41978811,216.41,216.31,0.71]
[1756435093169,4.17978811,216.36,216.31,0.71]
[1756435093372,4.17978811,216.36,216.31,5.33298607]
[1756435093672,4.17978811,216.37,216.34,5.320302]
[1756435093882,0.7,216.37,216.34,5.320302]
[1756435094085,0.7,216.37,216.32,4.17978811]
[1756435094275,4.17978811,216.34,216.32,80.7]
[1756435094493,0.7,216.36,216.34,4.62127]
[1756435094494,4.87978811,216.36,216.34,4.62127]
[1756435094782,4.87978811,216.36,216.29,89.53318893]
[1756435095089,4.17978811,216.35,216.3,13.898863]
[1756435095259,4.17978811,216.35,216.3,14.608863]
[1756435095464,4.17978811,216.33,216.3,94.598863]
[1756435095666,4.17978811,216.33,216.3,80.7]
[1756435096056,4.17978811,216.32,216.3,80.7]
[1756435096471,0.7,216.33,216.3,94.60015]
[1756435096680,4.17978811,216.32,216.3,80.7]
[1756435096987,0.7,216.33,216.3,80.7]
[1756435097177,4.17978811,216.33,216.3,80.7]
[1756435098390,8.80235848,216.33,216.3,80.7]
[1756435098779,4.17978811,216.32,216.3,80.7]
[1756435098980,26.0,216.3,216.29,0.03]
[1756435099300,30.17978811,216.3,216.29,0.03]
[1756435099597,35.50299661,216.3,216.29,0.03]
[1756435104312,47.06101787,216.3,216.26,0.03]
[1756435104520,30.17978811,216.27,216.26,0.03]
[1756435105011,30.87978811,216.27,216.26,0.03]
[1756435106220,30.62384981,216.27,216.26,0.03]
[1756435106390,34.80363792,216.27,216.26,0.03]
[1756435106592,35.50363792,216.27,216.26,0.03]
[1756435108208,34.80363792,216.27,216.26,0.03]
[1756435108397,31.32384981,216.27,216.26,0.03]
[1756435108718,30.17978811,216.27,216.26,0.03]
[1756435109731,34.80363792,216.27,216.26,0.03]
[1756435111095,35.48363792,216.27,216.26,0.03]
[1756435113395,34.80363792,216.27,216.26,0.03]
[1756435114392,30.17978811,216.27,216.26,0.03]
[1756435114828,34.80363792,216.27,216.26,0.03]
[1756435115995,4.62315085,216.31,216.26,0.7]
[1756435116192,30.17978811,216.27,216.26,0.7]
[1756435116391,68.61978811,216.27,216.26,0.7]
[1756435116794,68.61978811,216.27,216.26,0.03]
[1756435117025,73.18500343,216.27,216.26,0.03]
[1756435117400,68.56115362,216.27,216.26,0.03]
[1756435117607,64.38136551,216.27,216.26,0.7]
[1756435121221,38.44,216.27,216.26,0.7]
[1756435123205,43.06384981,216.27,216.26,0.7]
[1756435123617,43.06384981,216.27,216.26,0.03]
[1756435124002,43.06384981,216.27,216.26,0.7]
[1756435124412,38.44,216.27,216.26,0.7]
[1756435124605,47.24363792,216.27,216.26,0.03]
[1756435126114,47.92363792,216.27,216.26,0.03]
[1756435126322,43.06384981,216.27,216.26,0.03]
[1756435126625,47.24363792,216.27,216.26,0.03]
[1756435127315,68.57978811,216.27,216.26,0.03]
[1756435127625,42.57978811,216.27,216.26,0.03]
[1756435127929,47.20363792,216.27,216.26,0.03]
[1756435129937,42.57978811,216.27,216.26,0.03]
[1756435130113,47.20363792,216.27,216.26,0.03]
[1756435130938,42.57978811,216.27,216.26,0.7]
[1756435131314,42.57978811,216.27,216.26,0.03]
[1756435132220,47.20363792,216.27,216.26,0.03]
[1756435132930,42.57978811,216.27,216.26,0.03]
[1756435133735,47.20363792,216.27,216.26,0.03]
[1756435134039,47.88363792,216.27,216.26,0.03]
[1756435134415,47.20363792,216.27,216.26,0.03]
[1756435135321,47.88363792,216.27,216.26,0.03]
[1756435136341,47.20363792,216.27,216.26,0.03]
[1756435139240,51.74247906,216.27,216.26,0.03]
[1756435139740,51.80247906,216.27,216.26,0.03]
[1756435139940,47.94363792,216.27,216.26,0.03]
[1756435143432,67.00799119,216.27,216.26,1e-08]
[1756435143636,39.87991715,216.24,216.23,1e-08]
[1756435143833,82.37970526,216.24,216.23,1e-08]
[1756435144031,68.49978811,216.24,216.23,1e-08]
[1756435144434,38.32,216.24,216.23,0.65000001]
[1756435144764,64.32,216.24,216.23,0.65000001]
[1756435146761,68.49978811,216.24,216.23,1e-08]
[1756435147568,68.49978811,216.24,216.23,0.65000001]
[1756435147750,73.12427941,216.24,216.23,1e-08]
[1756435148339,73.84427941,216.24,216.23,1e-08]
[1756435148547,68.49978811,216.24,216.23,1e-08]
[1756435148756,72.39870473,216.24,216.23,1e-08]
[1756435149146,68.21891662,216.24,216.23,1e-08]
[1756435149350,71.61890004,216.24,216.23,1e-08]
[1756435149558,76.24339134,216.24,216.23,1e-08]
[1756435149747,37.92339134,216.24,216.23,1e-08]
[1756435150065,70.88445011,216.24,216.23,1e-08]
[1756435150376,78.96265962,216.24,216.23,1e-08]
[1756435151357,83.58715092,216.24,216.23,1e-08]
[1756435151749,40.66265962,216.24,216.23,0.65000001]
[1756435152059,5.86445011,216.24,216.23,0.65000001]
[1756435152264,3.46533818,216.24,216.23,4.82978812]
[1756435152875,0.06,216.27,216.23,4.82978812]
[1756435153044,3.46367945,216.26,216.23,13.87991716]
[1756435153242,3.46367945,216.26,216.25,4.17978811]
[1756435153770,3.46367945,216.26,216.25,9.45406556]
[1756435154380,0.06,216.27,216.25,12.91774556]
[1756435154575,0.06,216.27,216.26,4.82978811]
[1756435154988,0.06,216.27,216.26,0.65]
[1756435155163,3.52176347,216.27,216.26,0.65]
[1756435157991,3.52176347,216.27,216.26,0.68]
[1756435158787,3.52070032,216.27,216.26,5.30406362]
[1756435159086,0.06,216.27,216.26,23.36376888]
[1756435160389,0.06,216.27,216.26,19.18398077]
[1756435160589,0.06,216.27,216.26,23.36376888]
[1756435162399,0.06,216.27,216.26,25.21703588]
[1756435163680,0.06,216.27,216.26,21.03724777]
[1756435164003,0.06,216.27,216.26,25.21703588]
[1756435164802,0.06,216.27,216.26,105.91703588]
[1756435165196,0.06,216.27,216.26,101.73724777]
[1756435165396,0.06,216.27,216.26,105.91703588]
[1756435166686,0.06,216.27,216.26,113.91703588]
[1756435167494,0.06,216.29,216.27,13.87991715]